bitfinex/quotes_BTCUSD_20220218
["timestamp","ask_amount","ask_price","bid_price","bid_amount"]
[1645217978178,0.29065796,39986.0,39985.0,0.1]
[1645217978374,0.29065796,39986.0,39984.0,0.06253332]
[1645217978577,0.29065796,39986.0,39985.0,0.33227843]
[1645217979575,0.29065796,39986.0,39985.0,0.06399396]
[1645217979776,0.29065796,39986.0,39985.0,0.16399396]
[1645217980580,0.29065796,39986.0,39985.0,0.10146996]
[1645217980782,0.29065796,39986.0,39985.0,0.11147096]
[1645217980977,0.29065796,39986.0,39985.0,0.01147096]
[1645217981178,0.29065796,39986.0,39985.0,0.00146996]
[1645217982428,0.29065796,39986.0,39985.0,0.05146996]
[1645217984628,0.29065796,39986.0,39985.0,0.06146996]
[1645217984828,0.29065796,39986.0,39985.0,0.05401574]
[1645217985029,0.29065796,39986.0,39985.0,0.05496134]
[1645217985484,0.32815279,39986.0,39985.0,0.05496134]
[1645217985880,0.32815279,39986.0,39985.0,0.00496134]
[1645217987481,0.32815279,39986.0,39985.0,0.34773218]
[1645217987685,0.32815279,39986.0,39985.0,0.66608455]
[1645217987885,0.32815279,39986.0,39985.0,0.44773218]
[1645217988585,0.32815279,39986.0,39985.0,0.50773218]
[1645217988783,0.32815279,39986.0,39985.0,0.49773218]
[1645217989627,0.32815279,39986.0,39985.0,0.49611769]
[1645217989829,0.32815279,39986.0,39985.0,0.15334685]
[1645217990230,0.32815279,39986.0,39985.0,0.00334685]
[1645217990431,0.32815279,39986.0,39985.0,0.05334685]
[1645217990830,0.32815279,39986.0,39985.0,0.35906522]
[1645217991028,0.32815279,39986.0,39985.0,0.05334685]
[1645217991232,0.32815279,39986.0,39985.0,0.15334685]
[1645217991429,0.0272331,39991.0,39986.0,1.025032]
[1645217991630,0.0272331,39991.0,39987.0,0.12503045]
[1645217991631,0.0652545,39991.0,39987.0,0.12503045]
[1645217991831,0.0652545,39991.0,39987.0,0.17503045]
[1645217992130,0.0652545,39991.0,39989.0,0.28557896]
[1645217992329,0.0272331,39991.0,39990.0,1.9893653]
[1645217992631,0.0272331,39991.0,39990.0,2.2018703]
[1645217992830,0.0272331,39991.0,39990.0,2.3950137]
[1645217993482,0.30952129,40006.0,39991.0,1.4]
[1645217993690,0.03670329,40006.0,39997.0,0.010219]
[1645217993986,0.54185496,40009.0,39998.0,0.062487]
[1645217994183,0.03785496,40009.0,40004.0,0.33344038]
[1645217994382,0.03785496,40009.0,40004.0,0.43344038]
[1645217994685,0.03785496,40009.0,40000.0,0.0012]
[1645217995083,0.03791986,40009.0,40005.0,0.062489]
[1645217995487,0.03791986,40009.0,40005.0,0.124978]
[1645217995687,0.03791986,40009.0,40004.0,0.124977]
[1645217995884,6.49e-05,40009.0,40000.0,0.0012]
[1645217996183,0.40288784,40013.0,40000.0,0.0012]
[1645217996383,6.49e-05,40009.0,40000.0,0.0012]
[1645217996830,6.49e-05,40009.0,40001.0,0.06250166]
[1645217997229,0.40288784,40013.0,40001.0,0.06250166]
[1645217997430,6.49e-05,40007.0,40001.0,0.06250166]
[1645217997629,6.49e-05,40007.0,40001.0,0.4488363]
[1645217997830,6.49e-05,40007.0,40001.0,0.4590553]
[1645217998332,6.49e-05,40007.0,40005.0,0.135191]
[1645217998530,0.0005,40009.0,40006.0,0.38633464]
[1645217998730,0.0005,40009.0,40006.0,0.43633464]
[1645217998931,0.0005,40009.0,40006.0,0.53633464]
[1645217999133,0.0031,40007.0,40006.0,0.54881664]
[1645217999335,0.07394603,40017.0,40007.0,1.4]
[1645217999535,0.61231183,40027.0,40007.0,1.4]
[1645217999536,0.13881183,40027.0,40017.0,1.4]
[1645217999740,0.07029254,40032.0,40025.0,1.4]
[1645217999932,0.03747797,40033.0,40025.0,1.19199542]
[1645218000130,0.5303,40035.0,40026.0,1.4]
[1645218000334,0.5303,40035.0,40032.0,0.062433]
[1645218000603,0.0332396,40034.0,40033.0,0.59721347]
[1645218000805,0.00585832,40042.0,40034.0,1.4]
[1645218001003,0.00585832,40042.0,40035.0,0.0511]
[1645218001004,0.005518,40042.0,40035.0,0.0511]
[1645218001200,0.005518,40042.0,40035.0,0.24286831]
[1645218001399,0.005518,40042.0,40036.0,0.062435]
[1645218001400,0.00585832,40042.0,40036.0,0.062435]
[1645218001600,0.00585832,40042.0,40037.0,0.11234578]
[1645218001808,0.00585832,40042.0,40039.0,0.5]
[1645218002005,0.26752019,40049.0,40040.0,0.5499]
[1645218002006,0.00034032,40048.0,40040.0,0.5499]
[1645218002202,0.1,40043.0,40040.0,0.5499]
[1645218002401,0.1,40043.0,40040.0,0.74166831]
[1645218002602,0.00034032,40048.0,40040.0,0.866532]
[1645218002802,0.01,40049.0,40040.0,0.866532]
[1645218002803,0.00696798,40042.0,40041.0,0.55827152]
[1645218003002,0.00034032,40048.0,40043.0,0.5]
[1645218003202,0.01,40049.0,40043.0,0.62485]
[1645218003401,0.00034032,40048.0,40043.0,0.77485]
[1645218003602,6.698e-05,40044.0,40043.0,0.77485]
[1645218003803,6.698e-05,40044.0,40043.0,1.2068634]
[1645218004000,6.698e-05,40044.0,40043.0,1.7068634]
[1645218004234,0.00703496,40044.0,40043.0,1.94853171]
[1645218004429,0.00034032,40048.0,40043.0,1.94853171]
[1645218004430,7.08e-06,40048.0,40043.0,1.94853171]
[1645218004628,0.00033865,40048.0,40044.0,1.3]
[1645218004827,0.00033865,40048.0,40047.0,0.562423]
[1645218005028,0.76628331,40061.0,40047.0,0.562423]
[1645218005029,0.76628331,40061.0,40048.0,1.4]
[1645218005230,0.62747148,40061.0,40060.0,0.31959744]
[1645218006829,0.62747148,40061.0,40059.0,0.12479102]
[1645218007035,0.62747148,40061.0,40060.0,0.5]
[1645218008184,0.62747148,40061.0,40060.0,0.496]
[1645218008387,0.09717148,40061.0,40060.0,0.496]
[1645218008786,0.09717148,40061.0,40057.0,0.5]
[1645218008986,0.09717148,40061.0,40057.0,0.69797532]
[1645218008987,0.06029073,40058.0,40057.0,0.69797532]
[1645218009188,0.12058146,40058.0,40057.0,0.562408]
[1645218009592,0.12058146,40058.0,40057.0,1.0444214]
[1645218009789,0.12058146,40058.0,40057.0,0.662408]
[1645218009990,0.21775294,40058.0,40057.0,0.76038332]
[1645218010189,0.21775294,40058.0,40057.0,0.5]
[1645218010390,0.12058146,40058.0,40057.0,0.5]
[1645218010792,0.010219,40067.0,40058.0,0.00669102]
[1645218010993,0.010219,40067.0,40058.0,0.25894992]
[1645218011193,0.514,40069.0,40058.0,0.25894992]
[1645218011194,0.09717148,40062.0,40058.0,0.25894992]
[1645218011834,0.09717148,40061.0,40060.0,1.93743898]
[1645218012034,0.09717148,40061.0,40059.0,0.062409]
[1645218012236,0.09717148,40061.0,40060.0,0.19797532]
[1645218012432,0.09717148,40061.0,40060.0,0.06240559]
[1645218013635,0.09717148,40061.0,40058.0,0.00669102]
[1645218013838,0.334929,40060.0,40058.0,0.00669102]
[1645218014037,0.19717148,40061.0,40058.0,0.00669102]
[1645218014038,0.384829,40059.0,40058.0,0.00669102]
[1645218014238,0.384829,40059.0,40058.0,0.50009102]
[1645218014438,0.384829,40059.0,40058.0,0.49349102]
[1645218014639,0.13390968,40057.0,40055.0,0.19797532]
[1645218014942,0.24707148,40056.0,40055.0,0.19797532]
[1645218015139,0.14707148,40056.0,40044.0,0.37941212]
[1645218015337,0.14707148,40056.0,40043.0,0.11596913]
[1645218015338,0.19159212,40054.0,40043.0,0.11596913]
[1645218015584,0.24149212,40054.0,40045.0,0.33598292]
[1645218015783,0.24149212,40054.0,40049.0,0.12485028]
[1645218015986,6.721e-05,40058.0,40049.0,0.12485028]
[1645218016183,6.721e-05,40058.0,40050.0,0.0624302]
[1645218016382,6.721e-05,40058.0,40050.0,0.1624302]
[1645218016583,0.13490322,40063.0,40050.0,0.1]
[1645218016783,0.13490322,40063.0,40051.0,0.37941212]
[1645218016986,0.23030196,40063.0,40061.0,0.3232691]
[1645218017183,0.09717148,40063.0,40062.0,0.062409]
[1645218017588,0.09717148,40063.0,40062.0,0.112409]
[1645218017984,0.01,40069.0,40062.0,0.162409]
[1645218018186,0.01,40069.0,40068.0,0.062381]
[1645218018385,0.01,40069.0,40068.0,0.44103664]
[1645218018584,0.01,40069.0,40068.0,0.49103664]
[1645218018787,0.514,40089.0,40069.0,1.4]
[1645218018988,0.09217148,40087.0,40072.0,0.124746]
[1645218019238,0.09217148,40081.0,40076.0,0.31760225]
[1645218019433,0.01,40089.0,40076.0,0.37839689]
[1645218019434,0.09217148,40088.0,40076.0,0.37839689]
[1645218019635,0.01,40089.0,40076.0,0.52839689]
[1645218019832,0.09217148,40081.0,40077.0,0.0499]
[1645218020032,0.27112101,40089.0,40077.0,0.0499]
[1645218020033,0.010219,40080.0,40077.0,0.0499]
[1645218020434,0.010219,40080.0,40079.0,0.12475207]
[1645218020633,0.010219,40080.0,40079.0,0.17475207]
[1645218021033,0.010219,40080.0,40079.0,0.23712307]
[1645218021235,0.10239048,40080.0,40079.0,0.18712307]
[1645218021433,0.10239048,40080.0,40078.0,0.03842541]
[1645218021434,0.8,40079.0,40078.0,0.03842541]
[1645218021633,0.8,40079.0,40076.0,0.1]
[1645218021834,0.8,40079.0,40076.0,0.15]
[1645218022034,0.8,40079.0,40076.0,0.1]
[1645218022235,0.8,40079.0,40076.0,0.16238371]
[1645218022536,0.09217148,40081.0,40078.0,0.37096916]
[1645218022765,0.09217148,40079.0,40078.0,0.062382]
[1645218024384,6.753e-05,40081.0,40078.0,0.18711832]
[1645218024786,6.753e-05,40081.0,40079.0,0.37485504]
[1645218024983,0.09217148,40087.0,40081.0,0.062369]
[1645218025185,0.81204807,40092.0,40081.0,0.062369]
[1645218025186,0.11,40089.0,40082.0,0.06236892]
[1645218025388,0.11,40089.0,40079.0,0.18710731]
[1645218025389,0.09217148,40083.0,40079.0,0.18710731]
[1645218025584,0.010219,40086.0,40074.0,0.25659433]
[1645218025585,0.09217148,40080.0,40074.0,0.1247752]
[1645218025786,0.11843087,40079.0,40074.0,0.1247752]
[1645218025986,0.11843087,40079.0,40059.0,0.5005]
[1645218025987,0.27994275,40068.0,40059.0,0.5005]
[1645218026188,0.1,40062.0,40061.0,0.5]
[1645218026389,0.15229048,40062.0,40061.0,0.5]
[1645218026591,0.15229048,40062.0,40050.0,0.0999]
[1645218026856,0.15229048,40062.0,40045.0,0.1998]
[1645218026857,0.14073747,40054.0,40045.0,0.1998]
[1645218027057,0.09217148,40051.0,40045.0,0.1998]
[1645218027457,0.0499,40055.0,40045.0,0.1998]
[1645218027655,0.0499,40055.0,40046.0,0.33956628]
[1645218027854,0.0499,40055.0,40054.0,0.2697889]
[1645218027855,0.14207148,40055.0,40054.0,0.2697889]
[1645218028063,0.14207148,40055.0,40043.0,0.2496955]
[1645218028257,0.37485504,40065.0,40051.0,0.1]
[1645218028456,0.39581167,40068.0,40054.0,0.7]
[1645218028457,0.37485504,40067.0,40054.0,0.7]
[1645218028856,0.39581167,40068.0,40054.0,0.7]
[1645218029057,0.39581167,40068.0,40054.0,0.8]
[1645218029256,0.39581167,40068.0,40063.0,0.062397]
[1645218029456,0.39581167,40068.0,40061.0,0.25969012]
[1645218029457,0.39581167,40068.0,40061.0,0.35969012]
[1645218030059,0.28061077,40068.0,40061.0,0.35969012]
[1645218030589,0.28061077,40068.0,40061.0,0.25969012]
[1645218030785,0.28061077,40068.0,40063.0,0.0574]
[1645218030986,1.15,40067.0,40060.0,0.12479692]
[1645218031285,1.15006802,40067.0,40060.0,0.12479692]
[1645218032086,1.15,40067.0,40060.0,0.12479692]
[1645218032285,6.797e-05,40066.0,40060.0,0.12479692]
[1645218032486,6.797e-05,40066.0,40062.0,0.06239846]
[1645218032686,6.797e-05,40066.0,40062.0,0.37646982]
[1645218033089,6.797e-05,40066.0,40063.0,0.062399]
[1645218033287,0.28054275,40068.0,40063.0,0.062399]
[1645218033687,6.797e-05,40066.0,40063.0,0.062399]
[1645218034535,0.28054275,40068.0,40063.0,0.062399]
[1645218034738,6.797e-05,40067.0,40063.0,0.062399]
[1645218035336,0.13692553,40065.0,40063.0,0.062399]
[1645218036137,6.802e-05,40066.0,40064.0,0.35089252]
[1645218036337,6.802e-05,40066.0,40063.0,0.062399]
[1645218037041,0.00033696,40067.0,40063.0,0.062399]
[1645218037240,6.802e-05,40067.0,40064.0,0.0499]
[1645218037439,0.00040498,40067.0,40064.0,0.11228]
[1645218037639,6.802e-05,40067.0,40064.0,0.21228]
[1645218038082,0.28087971,40068.0,40065.0,0.56787502]
[1645218038284,0.28054275,40068.0,40065.0,0.76787502]
[1645218038483,0.28054275,40068.0,40066.0,0.06237664]
[1645218038686,0.28054275,40068.0,40067.0,0.07471147]
[1645218038884,0.28054275,40068.0,40067.0,0.12461147]
[1645218039083,0.28054275,40068.0,40067.0,0.17461147]
[1645218039284,0.28054275,40068.0,40067.0,0.312277]
[1645218039683,0.28054275,40068.0,40067.0,0.412277]
[1645218039884,0.28054275,40068.0,40067.0,0.78179778]
[1645218040284,0.00033696,40076.0,40068.0,1.58711]
[1645218040488,0.4715,40094.0,40079.0,0.062369]
[1645218040686,0.01055596,40086.0,40079.0,0.38851837]
[1645218040890,0.010219,40086.0,40079.0,0.38851837]
[1645218041288,0.00033696,40086.0,40082.0,0.7]
[1645218041488,0.020219,40089.0,40083.0,0.0499]
[1645218041489,0.00033696,40087.0,40083.0,0.0499]
[1645218041754,0.00033696,40088.0,40083.0,0.0499]
[1645218041946,0.01,40089.0,40083.0,0.112254]
[1645218042146,0.010219,40087.0,40083.0,0.112254]
[1645218042545,0.01055596,40087.0,40083.0,0.112254]
[1645218042748,0.1265598,40084.0,40083.0,0.0499]
[1645218042950,0.1107378,40081.0,40075.0,0.062381]
[1645218043748,0.1107378,40081.0,40075.0,0.28082078]
[1645218045050,0.1107378,40081.0,40076.0,0.18711611]
[1645218045249,0.1107378,40081.0,40078.0,0.7]
[1645218045488,0.1107378,40081.0,40078.0,0.8]
[1645218045688,0.11080658,40081.0,40079.0,0.05]
[1645218045890,0.11080658,40081.0,40079.0,0.212362]
[1645218046489,0.1107378,40081.0,40080.0,0.06236]
[1645218047992,0.1107378,40081.0,40080.0,0.21236]
[1645218048192,6.645e-05,40083.0,40082.0,0.311743]
[1645218048391,6.645e-05,40083.0,40082.0,0.69789115]
[1645218048596,6.645e-05,40083.0,40082.0,0.74779115]
[1645218048992,0.00033696,40085.0,40082.0,0.74779115]
[1645218049240,6.645e-05,40085.0,40083.0,0.062352]
[1645218049636,6.645e-05,40085.0,40083.0,0.112352]
[1645218049937,6.645e-05,40085.0,40083.0,0.062352]
[1645218049938,0.010219,40084.0,40083.0,0.062352]
[1645218050137,0.010219,40084.0,40077.0,0.1]
[1645218050138,0.010219,40084.0,40078.0,0.062378]
[1645218050338,0.010219,40084.0,40074.0,0.124756]
[1645218050637,0.010219,40084.0,40074.0,0.31188824]
[1645218050837,0.00033696,40085.0,40074.0,0.31188824]
[1645218051036,0.00254892,40086.0,40079.0,0.7]
[1645218051239,0.00033696,40085.0,40080.0,0.06236]
[1645218051439,0.00248247,40086.0,40080.0,0.06236]
[1645218051638,0.00850586,40081.0,40080.0,0.33812326]
[1645218051838,0.00850586,40081.0,40080.0,0.43812326]
[1645218052037,0.00850586,40081.0,40080.0,0.63596134]
[1645218052992,0.00033696,40086.0,40082.0,0.01493645]
[1645218053193,0.00033696,40088.0,40083.0,0.0499]
[1645218053393,0.01033696,40089.0,40085.0,0.1]
[1645218053593,0.00033696,40088.0,40086.0,0.01626951]
[1645218053795,0.00033696,40089.0,40086.0,0.01626951]
[1645218053994,0.01055596,40090.0,40088.0,0.062354]
[1645218054193,0.010219,40093.0,40088.0,0.062354]
[1645218054595,0.010219,40093.0,40087.0,0.1]
[1645218054596,0.01055596,40093.0,40087.0,0.1]
[1645218054795,0.010219,40090.0,40081.0,0.124738]
[1645218054994,0.010219,40087.0,40081.0,0.124738]
[1645218055997,0.01055596,40087.0,40081.0,0.174738]
[1645218056195,0.01055596,40087.0,40081.0,0.224738]
[1645218056748,6.902e-05,40086.0,40081.0,0.124738]
[1645218057140,0.00040598,40086.0,40081.0,0.124738]
[1645218057440,0.010219,40087.0,40081.0,0.124738]
[1645218057641,0.010219,40090.0,40082.0,0.35021623]
[1645218057842,0.010219,40090.0,40084.0,0.062363]
[1645218058043,0.00033696,40093.0,40084.0,0.062363]
[1645218058240,0.00033696,40090.0,40084.0,0.112363]
[1645218058440,0.00033696,40093.0,40086.0,0.124709]
[1645218058641,0.00033696,40093.0,40091.0,0.26244089]
[1645218058946,0.00033696,40093.0,40087.0,0.212349]
[1645218059141,0.010219,40097.0,40092.0,0.062353]
[1645218059342,0.00033696,40096.0,40092.0,0.062353]
[1645218059540,0.010219,40097.0,40092.0,0.062353]
[1645218059941,0.01055596,40097.0,40092.0,0.062353]
[1645218060142,0.010219,40097.0,40092.0,0.062353]
[1645218060343,0.010219,40094.0,40087.0,0.15]
[1645218060596,0.010219,40094.0,40087.0,0.2]
[1645218060796,0.010219,40094.0,40089.0,0.062361]
[1645218060997,0.010219,40094.0,40084.0,0.01393122]
[1645218060998,0.00989955,40084.0,40080.0,0.26019877]
[1645218061299,0.00989955,40084.0,40082.0,0.01612646]
[1645218062199,0.00206376,40085.0,40083.0,1.5]
[1645218062398,0.0017268,40085.0,40084.0,0.1759622]
[1645218062599,0.00033696,40090.0,40085.0,1.4]
[1645218062800,0.00033696,40099.0,40089.0,0.7]
[1645218063000,0.01055596,40100.0,40092.0,0.062341]
[1645218063299,0.7485,40105.0,40092.0,0.162341]
[1645218063300,0.00033696,40099.0,40092.0,0.162341]
[1645218063500,0.00033696,40100.0,40094.0,0.06233398]
[1645218063699,7.146e-05,40098.0,40094.0,0.06233398]
[1645218063899,7.146e-05,40098.0,40095.0,0.062333]
[1645218064746,0.00033696,40102.0,40095.0,0.062333]
[1645218064944,0.00033696,40100.0,40095.0,0.38641983]
[1645218065144,0.00033696,40103.0,40095.0,0.38641983]
[1645218065346,0.01055596,40104.0,40099.0,0.062334]
[1645218065544,0.00033696,40103.0,40099.0,0.124668]
[1645218065745,0.00033696,40104.0,40099.0,0.174668]
[1645218065948,0.00033696,40103.0,40102.0,0.7]
[1645218066144,0.00033696,40108.0,40102.0,0.7]
[1645218066346,0.020219,40109.0,40103.0,0.25376823]
[1645218066544,0.00033696,40108.0,40104.0,0.062323]
[1645218066751,0.01,40109.0,40104.0,0.062323]
[1645218066944,0.00033696,40108.0,40104.0,0.062323]
[1645218067145,0.01,40109.0,40104.0,0.062323]
[1645218067348,0.00033696,40108.0,40104.0,0.062323]
[1645218067547,0.01,40109.0,40104.0,0.062323]
[1645218067744,0.00033696,40108.0,40104.0,0.062323]
[1645218067991,0.01033696,40109.0,40104.0,0.062323]
[1645218068207,0.00033696,40108.0,40104.0,0.062323]
[1645218068393,0.00033696,40108.0,40103.0,0.5660912]
[1645218068394,0.01,40109.0,40103.0,0.2]
[1645218068596,0.010219,40107.0,40102.0,0.124654]
[1645218068993,0.01055596,40107.0,40102.0,0.124654]
[1645218069196,0.010219,40107.0,40102.0,0.124654]
[1645218069595,0.00033696,40108.0,40102.0,0.124654]
[1645218069795,0.01,40109.0,40104.0,0.124664]
[1645218069995,0.00033696,40108.0,40104.0,0.124664]
[1645218070298,0.01033696,40109.0,40102.0,0.124654]
[1645218070595,0.00033696,40108.0,40102.0,0.124654]
[1645218070796,0.01033696,40109.0,40102.0,0.124654]
[1645218070996,0.21936092,40107.0,40102.0,0.124654]
[1645218071196,0.3642827,40106.0,40098.0,0.124686]
[1645218071398,0.010219,40103.0,40098.0,0.124686]
[1645218072043,0.00033696,40104.0,40102.0,0.33629713]
[1645218072239,0.00154592,40108.0,40102.0,0.46095913]
[1645218072240,0.00033696,40107.0,40102.0,0.46095913]
[1645218072438,0.00033696,40105.0,40102.0,0.124662]
[1645218072640,0.00033696,40107.0,40102.0,0.124662]
[1645218072839,0.00154592,40108.0,40102.0,0.124662]
[1645218072840,0.00188288,40108.0,40102.0,0.236991]
[1645218073039,0.00033696,40107.0,40102.0,0.236991]
[1645218073239,0.00154592,40108.0,40102.0,0.236991]
[1645218073240,0.00188288,40108.0,40102.0,0.236991]
[1645218073440,0.00040911,40107.0,40104.0,0.30266605]
[1645218073641,7.215e-05,40107.0,40104.0,0.30266605]
[1645218074441,0.00188288,40108.0,40104.0,0.30266605]
[1645218074643,0.00195503,40108.0,40104.0,0.30266605]
[1645218075042,0.00195503,40108.0,40107.0,0.7]
[1645218075242,0.00161807,40108.0,40107.0,0.862318]
[1645218075494,0.00161807,40108.0,40107.0,0.962318]
[1645218075696,0.00154592,40108.0,40107.0,0.962318]
[1645218075894,0.00154592,40108.0,40107.0,1.062318]
[1645218076095,0.01455169,40109.0,40107.0,1.062318]
[1645218076096,0.01,40109.0,40107.0,1.062318]
[1645218076294,0.01,40109.0,40108.0,0.186948]
[1645218076496,0.00033696,40113.0,40109.0,1.4]
[1645218076698,0.00033696,40115.0,40110.0,0.062306]
[1645218076896,0.00033696,40113.0,40112.0,0.26413674]
[1645218077095,0.00033696,40117.0,40112.0,0.38874574]
[1645218077299,0.010219,40120.0,40113.0,0.05]
[1645218077496,0.00033696,40119.0,40115.0,0.186908]
[1645218077698,0.01055596,40120.0,40115.0,0.24921]
[1645218077896,0.0011,40126.0,40115.0,0.29921]
[1645218077897,0.00033696,40119.0,40115.0,0.29921]
[1645218078096,0.010219,40124.0,40116.0,1.25]
[1645218078097,0.00665596,40124.0,40116.0,1.25]
[1645218078297,0.00665596,40124.0,40116.0,1.35]
[1645218078701,0.00665596,40124.0,40120.0,0.062298]
[1645218079342,0.373786,40118.0,40117.0,0.01245878]
[1645218079541,0.373786,40118.0,40114.0,0.1]
[1645218080044,0.373786,40118.0,40117.0,0.062313]
[1645218080941,0.368786,40118.0,40117.0,0.32314115]
[1645218081942,0.368786,40118.0,40117.0,0.68565725]
[1645218082144,0.368786,40118.0,40117.0,0.83565725]
[1645218082344,0.0011,40126.0,40118.0,1.05]
[1645218082546,0.0011,40126.0,40120.0,0.062297]
[1645218082984,7.341e-05,40124.0,40123.0,0.1]
[1645218083184,7.341e-05,40124.0,40123.0,0.286878]
[1645218083485,7.341e-05,40124.0,40123.0,0.7012647]
[1645218083888,0.0011,40132.0,40126.0,0.0126983]
[1645218084088,0.0011,40132.0,40129.0,0.7]
[1645218084289,0.0011,40132.0,40131.0,0.1]
[1645218084485,0.0011,40139.0,40131.0,0.1]
[1645218084686,0.0011,40139.0,40131.0,0.15]
[1645218084885,0.0011,40139.0,40132.0,0.34873486]
[1645218085189,0.0011,40139.0,40133.0,0.062281]
[1645218085385,0.0068,40142.0,40133.0,0.062281]
[1645218085984,0.0068,40142.0,40140.0,0.34530091]
[1645218086184,0.001,40144.0,40141.0,0.062281]
[1645218086385,0.011219,40144.0,40141.0,0.062281]
[1645218087339,0.001,40144.0,40141.0,0.062281]
[1645218090593,0.010219,40143.0,40135.0,0.124578]
[1645218090792,0.010219,40140.0,40135.0,0.124578]
[1645218090995,0.010219,40140.0,40132.0,0.50644882]
[1645218090996,1.4,40139.0,40132.0,0.25927778]
[1645218091190,0.010219,40140.0,40132.0,0.00734788]
[1645218091490,0.12536594,40140.0,40132.0,0.00851708]
[1645218091891,0.11514694,40140.0,40132.0,0.00851708]
[1645218092093,0.11514694,40140.0,40133.0,0.062286]
[1645218092291,0.11514694,40140.0,40135.0,0.124578]
[1645218093291,0.12617918,40133.0,40132.0,0.00851708]
[1645218093491,0.12617918,40133.0,40132.0,0.07080908]
[1645218093891,0.0032056,40143.0,40132.0,0.07080908]
[1645218093892,7.427e-05,40140.0,40132.0,0.07080908]
[1645218094337,7.427e-05,40140.0,40132.0,0.06991002]
[1645218094538,7.427e-05,40140.0,40134.0,0.124575]
[1645218094740,0.24956838,40142.0,40134.0,0.43864253]
[1645218094940,7.428e-05,40138.0,40134.0,0.43864253]
[1645218095338,7.428e-05,40138.0,40134.0,0.124575]
[1645218095942,0.11914873,40141.0,40134.0,0.124575]
[1645218096139,0.00299958,40139.0,40136.0,0.06227996]
[1645218096341,7.428e-05,40138.0,40137.0,0.062284]
[1645218096741,7.428e-05,40138.0,40134.0,0.124575]
[1645218097039,7.428e-05,40138.0,40132.0,0.00638781]
[1645218097240,0.00299958,40139.0,40132.0,0.00638781]
[1645218097441,0.06237428,40138.0,40132.0,0.00638781]
[1645218097638,0.11526801,40134.0,40132.0,0.00638781]
[1645218097839,7.428e-05,40138.0,40133.0,0.062298]
[1645218098091,7.428e-05,40138.0,40133.0,0.048298]
[1645218098289,0.00299958,40139.0,40133.0,0.048298]
[1645218098493,0.1,40138.0,40132.0,0.00638781]
[1645218098690,0.2529249,40134.0,40132.0,0.00638781]
[1645218099295,0.13638307,40134.0,40132.0,0.00638781]
[1645218100096,7.428e-05,40135.0,40132.0,0.0063268]
[1645218100694,0.0096,40137.0,40132.0,0.1309138]
[1645218100897,0.0096,40137.0,40132.0,0.0051576]
[1645218101092,7.428e-05,40136.0,40132.0,0.0051576]
[1645218101291,0.3664449,40136.0,40132.0,0.0051576]
[1645218101493,0.22759411,40133.0,40132.0,0.0051576]
[1645218101748,0.33737539,40133.0,40132.0,0.00425854]
[1645218101942,0.33737539,40133.0,40132.0,0.00308934]
[1645218102142,0.10978128,40133.0,40132.0,0.00308934]
[1645218103246,0.00258262,40131.0,40128.0,0.0011692]
[1645218105903,0.00258262,40131.0,40129.0,0.29494531]
[1645218107200,0.00258262,40131.0,40129.0,0.29500632]
[1645218108202,0.00258262,40131.0,40129.0,0.29506733]
[1645218108602,0.00258262,40131.0,40130.0,0.05]
[1645218109844,0.00258262,40131.0,40130.0,0.51637062]
[1645218110044,0.00258262,40131.0,40130.0,0.61726968]
[1645218110248,0.00487101,40133.0,40131.0,1.52455567]
[1645218110249,0.00339755,40133.0,40131.0,1.52455567]
[1645218110446,0.00339755,40133.0,40132.0,0.36637062]
[1645218110447,0.002988,40133.0,40132.0,0.36637062]
[1645218110645,0.00306228,40133.0,40132.0,0.46637062]
[1645218110847,0.00306228,40133.0,40132.0,0.56637062]
[1645218111149,0.00033527,40140.0,40132.0,0.61637062]
[1645218111346,0.7668,40141.0,40136.0,0.186817]
[1645218111549,0.00033527,40140.0,40136.0,0.94909]
[1645218111749,0.0022,40145.0,40137.0,0.28868292]
[1645218111750,0.00033527,40142.0,40137.0,0.28868292]
[1645218111946,0.00033527,40143.0,40137.0,0.28868292]
[1645218112147,0.00133527,40144.0,40137.0,0.38868292]
[1645218112354,0.00023527,40144.0,40138.0,0.28120124]
[1645218112551,0.0022,40145.0,40142.0,0.162259]
[1645218112553,0.0011,40145.0,40142.0,0.162259]
[1645218112746,0.0011,40145.0,40143.0,0.986754]
[1645218113006,0.00081224,40150.0,40144.0,2.54]
[1645218113205,0.00081224,40150.0,40144.0,2.5899]
[1645218113407,0.00081224,40150.0,40147.0,0.28334055]
[1645218113604,0.00081224,40150.0,40148.0,0.0499]
[1645218113810,0.00011358,40152.0,40149.0,1.4]
[1645218114005,0.0011,40154.0,40149.0,1.574392]
[1645218114206,0.02912413,40161.0,40150.0,0.7]
[1645218114407,0.02912413,40161.0,40151.0,0.41627062]
[1645218114607,0.02912413,40161.0,40154.0,0.32231006]
[1645218114906,0.02912413,40161.0,40155.0,0.186705]
[1645218115306,0.02912413,40161.0,40156.0,0.05]
[1645218115912,0.02002413,40161.0,40157.0,0.062243]
[1645218116111,0.02002413,40161.0,40157.0,0.94894041]
[1645218116312,0.02002413,40161.0,40158.0,0.05]
[1645218116508,0.02002413,40161.0,40158.0,0.1]
[1645218117637,0.02002413,40161.0,40158.0,0.10123021]
[1645218118439,0.02002413,40161.0,40158.0,0.10212927]
[1645218118639,0.02002413,40161.0,40158.0,0.10335948]
[1645218119040,0.02009973,40161.0,40158.0,0.10335948]
[1645218119242,0.02009973,40161.0,40159.0,0.1]
[1645218119547,0.00140237,40167.0,40160.0,0.4202154]
[1645218119744,0.00107648,40167.0,40166.0,1.4]
[1645218119942,0.00107648,40167.0,40166.0,1.5499]
[1645218120143,0.0021,40172.0,40167.0,0.96584086]
[1645218120350,0.0021,40172.0,40168.0,0.01303489]
[1645218120597,0.0021,40172.0,40169.0,0.062221]
[1645218120901,0.0021,40172.0,40171.0,0.1]
[1645218121098,0.0021,40172.0,40170.0,0.07492777]
[1645218121099,0.75,40171.0,40166.0,0.3293055]
[1645218121300,0.75,40171.0,40166.0,0.25489223]
[1645218121600,0.75,40171.0,40168.0,0.10096007]
[1645218121797,0.75,40171.0,40169.0,0.0011692]
[1645218122197,0.2410455,40172.0,40170.0,0.124461]
[1645218122597,0.0021,40172.0,40170.0,0.124461]
[1645218123398,0.0021,40172.0,40168.0,0.00096007]
[1645218123602,0.18657267,40167.0,40166.0,6.101e-05]
[1645218123998,0.18657267,40167.0,40166.0,0.00212927]
[1645218124443,0.18657267,40167.0,40166.0,0.06437327]
[1645218125045,0.18657267,40167.0,40166.0,0.00212927]